[Event "FIDE World Cup O10-B 2024"]
[Site "Batumi"]
[Date "2024.06.29"]
[Round "7.7"]
[White "Azimov, Yasin"]
[Black "Xia, Joshua"]
[Result "1-0"]
[ECO "D79"]
[WhiteElo "1833"]
[BlackElo "2060"]
[Annotator "NA RC"]
[PlyCount "139"]
[EventDate "2024.06.23"]
[EventType "swiss"]
[EventCountry "GEO"]
[SourceTitle "playchess.com"]
[Source "ChessBase"]
[SourceQuality "1"]
[TimeControl "5400+30"]

1. d4 {[%emt 0:00:09]} Nf6 {[%emt 0:00:12]} 2. c4 {[%emt 0:00:09]} g6 {[%emt 0:00:06]} 3. g3 {[%emt 0:00:09]} c6 {[%emt 0:00:15]} 4. Bg2 {[%emt 0:00:41]} d5 {[%emt 0:00:12]} 5. cxd5 {[%emt 0:00:34]} cxd5 {[%emt 0:00:06]} 6. Nf3 {[%emt 0:00:21]} Bg7 {[%emt 0:00:09]} 7. O-O {[%emt 0:00:10]} O-O {[%emt 0:00:04]} 8. Nc3 {[%emt 0:00:16]} Ne4 {[%emt 0:00:33] is now more promising than 8...Nc6.} 9. Qb3 {[%emt 0:08:10]} Nc6 {[%emt 0:01:23]} 10. e3 {[%emt 0:01:18]} Na5 {[%emt 0:02:20] D79: Fianchetto Grünfeld: Symmetrical Variation (6 0-0 c6 7 cxd5 cxd5).} 11. Qd1 {[%emt 0:02:56]} Nxc3 {[%emt 0:00:59]} 12. bxc3 {[%emt 1:21:37]} b6 {[%emt 0:01:49]} 13. Re1 $146 {[%emt 0:00:00]} ({Predecessor:} 13. Nd2 Ba6 14. Re1 Rc8 15. Bb2 Qd7 16. Rc1 Rc7 17. Bf1 Bxf1 18. Rxf1 Rfc8 19. Rb1 {0-1 Wernitz,A (1986)-Mallee,R (2120) Ruhrgebiet Verbandsklasse Gruppe 2 1415 2014 (7.2)}) 13... Bb7 {[%emt 0:01:14]} 14. Nd2 {[%emt 0:00:00]} Rc8 {[%emt 0:00:16]} 15. Bb2 {[%emt 0:00:00]} Qd7 {[%emt 0:00:28]} 16. e4 {[%emt 0:00:00]} dxe4 {[%emt 0:00:18]} 17. Nxe4 {[%emt 0:00:00]} Nc4 {[%emt 0:00:18]} 18. Bc1 {[%emt 0:00:00]} Rfd8 {[%emt 0:02:31]} 19. Qe2 {[%emt 0:00:00]} h6 {[%emt 0:01:58]} 20. Nd2 {[%emt 0:00:00]} Bxg2 {[%emt 0:00:35]} 21. Kxg2 {[%emt 0:04:30]} Nxd2 {[%emt 0:03:11]} 22. Bxd2 {[%emt 0:00:00]} e5 {[%emt 1:22:33]} 23. Be3 {[%emt 0:00:00]} Rxc3 {[%emt 0:00:00]} 24. dxe5 {[%emt 0:00:00]} Qd5+ {[%emt 0:00:00]} 25. Kg1 {[%emt 0:00:00]} Qxe5 {[%emt 0:00:00]} 26. Rab1 {[%emt 0:00:00]} Rcc8 {[%emt 0:00:00]} (26... Ra3 $17 27. Bf4 Qxe2 28. Rxe2 g5) 27. Qa6 {[%emt 0:00:00]} Qb8 {[%emt 0:00:00]} (27... Qc7 $15) 28. Bf4 $1 {[%emt 0:00:00]} Qa8 {[%emt 0:00:00]} 29. Re7 {[%emt 0:00:00]} Bd4 {[%emt 0:00:00]} 30. Bxh6 {[%emt 0:04:30]} Rc2 {[%emt 0:04:00]} 31. Re2 $1 {[%emt 0:00:30]} Rc5 $11 {[%emt 0:00:00]} 32. Be3 {[%emt 0:00:30]} Qf3 {[%emt 0:01:00]} 33. Bxd4 {[%emt 0:00:00]} Rxd4 {[%emt 0:00:00]} 34. Rbe1 {[%emt 0:00:00]} Qg4 {[%emt 0:01:00]} 35. Qxa7 {[%emt 0:00:00]} Rh5 {[%emt 0:00:00]} 36. Re4 {[%emt 0:00:00]} Rxe4 {[%emt 0:00:00]} 37. Qa8+ {[%emt 0:00:00]} Kg7 {[%emt 0:00:00]} 38. Qxe4 {[%emt 0:00:00]} Qxe4 {[%emt 0:00:00]} 39. Rxe4 {[%emt 0:00:00]} Ra5 {[%emt 0:00:00]} 40. Re2 {[%emt 0:00:00]} Ra3 {[%emt 0:00:00]} 41. Kf1 {[%emt 0:00:00]} Kf6 {[%emt 0:00:00]} 42. f4 {[%emt 0:00:00]} Kf5 {[%emt 0:00:00]} 43. Kg2 {[%emt 0:00:00]} f6 {[%emt 0:00:00]} 44. h3 {[%emt 0:00:00]} g5 {[%emt 0:00:00]} 45. fxg5 {[%emt 0:00:00]} fxg5 {[%emt 0:00:00]} 46. Rb2 {[%emt 0:00:00]} Ra6 {[%emt 0:00:00]} 47. Kf3 {[%emt 0:00:00]} Ra3+ {[%emt 0:00:00]} 48. Rb3 {[%emt 0:00:00]} Rxa2 {[%emt 0:00:00]} 49. Rb5+ {[%emt 0:00:00]} Kf6 {[%emt 0:00:00]} 50. Rxb6+ {[%emt 0:00:00]} Kf5 {[%emt 0:00:00]} 51. Rb5+ {[%emt 0:00:00]} Kf6 {[%emt 0:00:00]} 52. Kg4 {[%emt 0:00:00]} Ra3 {[%emt 0:00:00]} 53. Rf5+ {[%emt 0:00:00]} Kg6 {[%emt 0:00:00]} 54. Rxg5+ {[%emt 0:00:00]} Kh6 {[%emt 0:10:00]} 55. Kh4 {[%emt 0:00:00]} Ra4+ {[%emt 0:00:00]} 56. g4 {[%emt 0:00:00]} Ra3 {[%emt 0:00:00]} 57. Rb5 {[%emt 0:00:00]} Kg6 {[%emt 0:00:00]} 58. Rb6+ {[%emt 0:00:00]} Kg7 {[%emt 0:00:00]} 59. g5 {[%emt 0:13:30]} Rc3 {[%emt 0:00:00]} 60. Kg4 {[%emt 0:00:30]} Ra3 {[%emt 0:03:00]} 61. h4 {[%emt 0:00:00]} Rc3 {[%emt 0:00:00]} 62. Kh5 {[%emt 0:00:00]} Ra3 {[%emt 0:00:00]} 63. Rb7+ {[%emt 0:00:00]} Kf8 {[%emt 0:00:00]} 64. Kh6 {[%emt 0:00:00]} Ra8 {[%emt 0:00:00]} 65. Kh7 {[%emt 0:00:00]} Ra4 {[%emt 0:00:00]} 66. h5 {[%emt 0:00:00]} Ra5 {[%emt 0:00:00]} 67. Rb8+ {[%emt 0:00:00]} Ke7 {[%emt 0:00:00]} 68. Kh6 {[%emt 0:00:00]} Kf7 {[%emt 0:00:00]} 69. g6+ {[%emt 0:00:00]} Kf6 {[%emt 0:00:00]} 70. Rf8+ {[%emt 0:00:00]} 1-0

[Event "FIDE World Cup O10-B 2024"]
[Site "Batumi"]
[Date "2024.06.29"]
[Round "7.9"]
[White "Makhsatuly, Rakhim"]
[Black "Kazimzade, Mahammad"]
[Result "1/2-1/2"]
[ECO "C54"]
[WhiteElo "1630"]
[BlackElo "1594"]
[Annotator "NA RC"]
[PlyCount "84"]
[EventDate "2024.06.23"]
[EventType "swiss"]
[EventCountry "GEO"]
[SourceTitle "playchess.com"]
[Source "ChessBase"]
[SourceQuality "1"]
[TimeControl "5400+30"]

1. e4 {[%emt 0:00:01]} e5 {[%emt 0:00:22]} 2. Nf3 {[%emt 0:00:05]} Nc6 {[%emt 0:00:13]} 3. Bc4 {[%emt 0:00:10]} Nf6 {[%emt 0:00:08]} 4. d3 {[%emt 0:00:03]} Bc5 {[%emt 0:00:37]} 5. O-O {[%emt 0:01:04]} d6 {[%emt 0:00:28]} 6. c3 {[%emt 0:00:27]} Bg4 {[%emt 0:00:43]} 7. h3 {[%emt 0:00:16]} Bh5 {[%emt 0:00:06]} 8. Nbd2 {[%emt 0:00:04]} O-O {[%emt 0:00:25]} 9. Re1 {[%emt 0:00:15]} a6 {[%emt 0:00:36]} 10. a4 {[%emt 0:00:10]} Ba7 {[%emt 1:31:52]} 11. Nf1 {[%emt 0:00:32]} h6 {[%emt 0:00:00]} 12. Ng3 {[%emt 0:00:13]} Bg6 {[%emt 0:00:00]} 13. Nh4 {[%emt 0:01:04]} Bh7 {[%emt 0:00:00]} 14. Nhf5 {[%emt 0:04:17]} Ne7 {[%emt 0:02:00]} 15. Qf3 {[%emt 0:01:13]} Ng6 {[%emt 0:00:30]} 16. h4 {[%emt 0:13:47]} b5 {[%emt 0:00:00]} 17. Bb3 {[%emt 1:15:19]} bxa4 {[%emt 0:01:00]} 18. Rxa4 {[%emt 0:00:30]} Nd7 {[%emt 0:00:00]} 19. Bd5 Nb6 {[%emt 0:01:00]} 20. Bxa8 {[%emt 0:00:00]} Nxa4 {[%emt 0:00:00]} 21. Bc6 {[%emt 0:00:00]} Nb6 {[%emt 0:00:00]} 22. Qg4 {[%emt 0:00:00]} Nc8 {[%emt 0:00:00]} 23. Nh5 {[%emt 0:00:00]} Nce7 {[%emt 0:00:00]} 24. Ba4 {[%emt 0:00:00]} Nxf5 {[%emt 0:00:00]} 25. exf5 {[%emt 0:00:00]} Qxh4 {[%emt 0:00:00]} 26. Qxh4 {[%emt 0:00:00]} Nxh4 {[%emt 0:03:30]} 27. f6 {[%emt 0:04:30]} g5 {[%emt 0:00:30]} 28. Be3 {[%emt 0:00:00]} c5 {[%emt 0:00:30]} 29. Bc2 {[%emt 0:00:00]} Rb8 {[%emt 0:00:00]} 30. b4 {[%emt 0:00:00]} Nf5 {[%emt 0:00:00]} 31. bxc5 {[%emt 0:00:00]} Bg6 {[%emt 0:00:00]} 32. Ng3 {[%emt 0:00:00]} Nxe3 {[%emt 0:00:00]} 33. fxe3 {[%emt 0:00:00]} Bxc5 {[%emt 0:00:00]} 34. Re2 {[%emt 0:00:00]} Rb2 {[%emt 0:00:00]} 35. Kf2 {[%emt 0:00:00]} d5 {[%emt 0:00:00]} 36. d4 {[%emt 0:00:00]} exd4 {[%emt 0:00:00]} 37. cxd4 {[%emt 0:05:00]} Bxd4 {[%emt 0:00:00]} 38. Bxg6 {[%emt 0:00:00]} fxg6 {[%emt 0:00:00]} 39. exd4 {[%emt 0:00:00]} Rb6 {[%emt 0:00:00]} 40. Re5 {[%emt 0:00:00]} Rxf6+ {[%emt 0:00:00]} 41. Ke3 {[%emt 0:00:00]} Rd6 {[%emt 0:00:00]} 42. Ne2 {[%emt 0:00:00]} Kf7 {[%emt 0:07:00]} 1/2-1/2

[Event "FIDE World Cup O10-B 2024"]
[Site "Batumi"]
[Date "2024.06.29"]
[Round "7.10"]
[White "Bergmann, Rafael Antonio"]
[Black "Jibladze, Nikoloz"]
[Result "1-0"]
[ECO "B54"]
[WhiteElo "1743"]
[BlackElo "1612"]
[Annotator "NA RC"]
[PlyCount "111"]
[EventDate "2024.06.23"]
[EventType "swiss"]
[EventCountry "GEO"]
[SourceTitle "playchess.com"]
[Source "ChessBase"]
[SourceQuality "1"]
[TimeControl "5400+30"]

1. e4 {[%emt 0:00:03]} c5 {[%emt 0:02:06]} 2. Nf3 {[%emt 0:00:06]} e6 {[%emt 0:00:03]} 3. d4 {[%emt 0:00:11]} cxd4 {[%emt 0:00:02]} 4. Nxd4 {[%emt 0:00:09]} a6 {[%emt 0:00:07]} 5. c4 {[%emt 0:00:18]} Nf6 {[%emt 0:05:59]} 6. Nc3 {[%emt 0:03:33]} d6 {[%emt 0:00:59]} 7. a3 {[%emt 0:00:29]} Nc6 {[%emt 0:04:48]} 8. Be3 {[%emt 0:00:53]} Be7 {[%emt 0:01:28]} 9. Be2 {[%emt 0:00:12]} O-O {[%emt 0:04:33]} 10. O-O {[%emt 0:00:05]} Bd7 {[%emt 0:00:13]} 11. f3 {[%emt 0:05:32]} Rc8 {[%emt 0:02:41]} 12. Rc1 {[%emt 0:08:11]} Ne5 {[%emt 0:22:13]} 13. b3 {[%emt 0:05:21]} Qa5 {[%emt 0:05:23]} 14. Nb1 {[%emt 0:10:25]} d5 {[%emt 0:09:29]} 15. b4 {[%emt 0:01:37]} Qd8 {[%emt 0:02:26]} 16. exd5 {[%emt 0:02:49]} exd5 {[%emt 0:00:23]} 17. c5 {[%emt 0:04:04]} a5 {[%emt 0:09:14]} 18. Qb3 {[%emt 0:05:22]} Nc6 {[%emt 0:04:57]} 19. Nc3 {[%emt 0:04:23]} axb4 {[%emt 0:02:05]} 20. axb4 {[%emt 0:00:09]} Nxd4 {[%emt 0:02:02]} 21. Bxd4 {[%emt 0:00:09]} Be6 {[%emt 0:00:49]} 22. Rcd1 {[%emt 0:03:51]} Re8 {[%emt 0:05:30]} 23. Bb5 {[%emt 0:00:37]} Bd7 {[%emt 0:00:34]} 24. Bxd7 {[%emt 0:00:28]} Qxd7 {[%emt 0:00:16]} 25. Bxf6 {[%emt 0:00:36]} Bxf6 {[%emt 0:00:09]} 26. Nxd5 {[%emt 0:00:09]} Qe6 {[%emt 0:00:54]} 27. Nxf6+ {[%emt 0:02:05]} Qxf6 {[%emt 0:00:10]} 28. Rd7 {[%emt 0:02:37]} Re2 {[%emt 0:00:58]} 29. Qd3 {[%emt 0:02:20]} Rce8 {[%emt 0:01:15]} 30. Rd1 {[%emt 0:02:53]} g6 {[%emt 0:01:36]} 31. Rd8 {[%emt 0:01:27]} Kg7 {[%emt 0:01:15]} 32. Qd4 {[%emt 0:04:31]} Rxd8 {[%emt 0:01:21]} 33. Qxf6+ {[%emt 0:00:08]} Kxf6 {[%emt 0:00:06]} 34. Rxd8 {[%emt 0:00:07]} Rb2 {[%emt 0:00:24]} 35. Rb8 {[%emt 0:02:22]} Rxb4 {[%emt 0:00:17]} 36. c6 {[%emt 0:00:05]} Rc4 {[%emt 0:00:07]} 37. cxb7 {[%emt 0:00:13]} Rb4 {[%emt 0:00:06]} 38. Kf2 {[%emt 0:00:06]} Rb3 {[%emt 0:00:37]} 39. g4 {[%emt 0:00:53]} Kg5 {[%emt 0:01:09]} 40. Kg3 {[%emt 0:00:10]} Rb4 {[%emt 0:01:10]} 41. h4+ {[%emt 0:00:14]} Kh6 {[%emt 0:00:29]} 42. g5+ {[%emt 0:00:08]} Kg7 {[%emt 0:00:05]} 43. f4 {[%emt 0:00:09]} Rb3+ {[%emt 0:00:22]} 44. Kg4 {[%emt 0:00:06]} Rb4 {[%emt 0:00:40]} 45. h5 {[%emt 0:00:10]} gxh5+ {[%emt 0:00:31]} 46. Kxh5 {[%emt 0:00:05]} Rb1 {[%emt 0:02:20]} 47. f5 {[%emt 0:00:10]} h6 {[%emt 0:00:52]} 48. f6+ {[%emt 0:00:35]} Kh7 {[%emt 0:00:08]} 49. gxh6 {[%emt 0:00:50]} Rb4 {[%emt 0:00:56]} 50. Kg5 {[%emt 0:00:07]} Rb1 {[%emt 0:01:33]} 51. Kf5 {[%emt 0:00:03]} Rf1+ {[%emt 0:00:24]} 52. Ke5 {[%emt 0:00:06]} Re1+ {[%emt 0:00:18]} 53. Kd6 {[%emt 0:00:03]} Rd1+ {[%emt 0:00:15]} 54. Ke7 {[%emt 0:00:05]} Re1+ {[%emt 0:01:10]} 55. Kxf7 {[%emt 0:00:05]} Rd1 {[%emt 0:00:07]} 56. Rh8+ {[%emt 0:00:12]} 1-0

[Event "FIDE World Cup O10-B 2024"]
[Site "Batumi"]
[Date "2024.06.29"]
[Round "7.11"]
[White "Kiringoda, Thehas Rithmitha"]
[Black "Kvaratskhelia, Giorgi"]
[Result "1-0"]
[ECO "D02"]
[WhiteElo "1641"]
[BlackElo "1548"]
[Annotator "NA RC"]
[PlyCount "49"]
[EventDate "2024.06.23"]
[EventType "swiss"]
[EventCountry "GEO"]
[SourceTitle "playchess.com"]
[Source "ChessBase"]
[SourceQuality "1"]
[TimeControl "5400+30"]

1. d4 {[%emt 0:00:04]} Nf6 {[%emt 0:00:36]} 2. Bf4 {[%emt 0:00:07]} d5 {[%emt 0:00:06]} 3. e3 {[%emt 0:00:06]} e6 {[%emt 0:00:08]} 4. Nf3 {[%emt 0:00:05]} c5 {[%emt 0:00:24]} 5. c3 {[%emt 0:00:07]} Nc6 {[%emt 0:00:20]} 6. Nbd2 {[%emt 0:00:06]} Bd6 {[%emt 0:01:28]} 7. Bg3 {[%emt 0:00:13]} Bxg3 {[%emt 0:15:35]} 8. hxg3 {[%emt 0:00:15]} Qc7 {[%emt 0:00:29]} 9. Bd3 {[%emt 0:03:02]} Ne7 {[%emt 0:04:32]} 10. Ne5 {[%emt 0:01:05]} Nc6 {[%emt 0:03:38]} 11. f4 {[%emt 0:00:10]} Bd7 {[%emt 0:05:48]} 12. Ndf3 {[%emt 0:01:57]} h6 {[%emt 0:05:02]} 13. Ng5 {[%emt 0:03:07]} Nxe5 {[%emt 0:01:13]} 14. fxe5 {[%emt 0:00:04]} Ne4 {[%emt 0:00:14]} 15. Bxe4 {[%emt 0:00:14]} dxe4 {[%emt 0:00:07]} 16. Nxe4 {[%emt 1:27:48]} O-O {[%emt 0:12:13]} 17. Qg4 {[%emt 0:00:00]} Kh7 {[%emt 0:00:46]} 18. O-O-O {[%emt 0:00:00]} f5 {[%emt 0:05:05]} 19. exf6 {[%emt 0:00:00]} Bc6 {[%emt 0:01:09]} 20. Ng5+ {[%emt 0:00:00]} Kh8 {[%emt 0:00:19]} 21. Nxe6 {[%emt 0:00:00]} Qd7 {[%emt 0:00:10]} 22. fxg7+ {[%emt 0:00:00]} Kh7 {[%emt 0:00:12]} 23. gxf8=N+ {[%emt 0:00:00]} Rxf8 {[%emt 0:00:45]} 24. Rxh6+ {[%emt 0:00:00]} Kxh6 {[%emt 0:00:11]} 25. Rh1# {[%emt 0:00:00]} 1-0

[Event "FIDE World Cup O10-B 2024"]
[Site "Batumi"]
[Date "2024.06.29"]
[Round "7.12"]
[White "Akramov, Khusan"]
[Black "Popov, Aleksandr And"]
[Result "1-0"]
[ECO "A22"]
[WhiteElo "1477"]
[BlackElo "1661"]
[Annotator "NA RC"]
[PlyCount "77"]
[EventDate "2024.06.23"]
[EventType "swiss"]
[EventCountry "GEO"]
[SourceTitle "playchess.com"]
[Source "ChessBase"]
[SourceQuality "1"]
[TimeControl "5400+30"]

1. c4 {[%emt 0:00:01]} e5 {[%emt 0:00:03]} 2. g3 {[%emt 0:00:13]} Nf6 {[%emt 0:00:08]} 3. Bg2 {[%emt 0:00:05]} d5 {[%emt 0:00:11]} 4. cxd5 {[%emt 0:00:04]} Nxd5 {[%emt 0:00:07]} 5. Nc3 {[%emt 0:00:02]} Nb6 {[%emt 0:00:19]} 6. e3 {[%emt 0:00:08]} Nc6 {[%emt 0:02:28]} 7. Nge2 {[%emt 0:00:21]} Be7 {[%emt 0:00:58]} 8. O-O {[%emt 0:00:07]} O-O {[%emt 0:01:32]} 9. f4 {[%emt 0:00:10]} exf4 {[%emt 0:01:45]} 10. Nxf4 {[%emt 0:00:13]} Bd6 {[%emt 0:06:08]} 11. d4 {[%emt 0:00:50]} Re8 {[%emt 0:07:38]} 12. Qh5 {[%emt 0:06:41]} Qe7 {[%emt 0:14:25]} 13. Ncd5 {[%emt 0:00:51]} Nxd5 {[%emt 0:01:09]} 14. Nxd5 {[%emt 0:00:08]} Qf8 {[%emt 0:00:57]} 15. Qg5 {[%emt 0:13:40]} Kh8 {[%emt 0:01:01]} 16. Qh5 {[%emt 0:02:29]} Kg8 {[%emt 0:00:10]} 17. Nc3 {[%emt 0:05:22]} Bd7 {[%emt 0:03:58]} 18. Bd5 {[%emt 0:00:10]} Nd8 {[%emt 0:03:34]} 19. Ne4 {[%emt 0:01:47]} Bc6 {[%emt 0:05:47]} 20. Ng5 {[%emt 0:01:03]} h6 {[%emt 0:00:33]} 21. Nxf7 {[%emt 0:03:25]} Bxd5 {[%emt 0:03:04]} 22. Nxh6+ {[%emt 0:00:22]} gxh6 {[%emt 0:00:12]} 23. Rxf8+ {[%emt 0:00:12]} Rxf8 {[%emt 0:00:06]} 24. Qg6+ {[%emt 0:00:54]} Kh8 {[%emt 0:00:12]} 25. Qxh6+ {[%emt 0:00:05]} Kg8 {[%emt 0:00:05]} 26. Qg5+ {[%emt 0:00:06]} Kh8 {[%emt 0:01:14]} 27. Qxd5 {[%emt 0:00:14]} Nc6 {[%emt 0:00:11]} 28. Qh5+ {[%emt 0:00:51]} Kg8 {[%emt 0:00:08]} 29. Qg6+ {[%emt 0:00:08]} Kh8 {[%emt 0:00:06]} 30. Bd2 {[%emt 0:01:52]} Ne7 {[%emt 0:00:18]} 31. Qh6+ {[%emt 0:00:41]} Kg8 {[%emt 0:00:05]} 32. d5 {[%emt 0:00:38]} Rf7 {[%emt 0:01:49]} 33. Bc3 {[%emt 0:00:13]} Rh7 {[%emt 0:00:21]} 34. Qe6+ {[%emt 0:01:34]} Rf7 {[%emt 0:00:18]} 35. Rf1 {[%emt 0:00:09]} Raf8 {[%emt 0:00:04]} 36. Rf6 {[%emt 0:00:19]} Nf5 {[%emt 0:01:27]} 37. Rxf5 {[%emt 0:00:16]} Be7 {[%emt 0:00:15]} 38. Qg6+ {[%emt 0:00:08]} Rg7 {[%emt 0:00:06]} 39. Qxg7# {[%emt 0:00:06]} 1-0